fUSD/lending_fUSD_20251117
["ID","MTS","AMOUNT","RATE_DAILY","PERIOD"]
[394284419,1763417600560,-1000.60956687,0.00041559,30]
[394284420,1763417600602,-151.0,0.00041565,120]
[394284421,1763417600645,-151.0,0.00041565,120]
[394284422,1763417600691,-154.136337,0.00041565,120]
[394284423,1763417600733,-151.0,0.00041565,120]
[394284424,1763417600774,-151.0,0.00041565,120]
[394284425,1763417600815,-182.44282,0.00041565,120]
[394284426,1763417600855,-151.0,0.00041565,120]
[394284427,1763417600895,-151.0,0.00041565,120]
[394284428,1763417600935,-151.0,0.00041565,120]
[394284429,1763417600975,-151.0,0.00041565,120]
[394284430,1763417601136,-151.0,0.00041565,120]
[394284431,1763417601207,-151.0,0.00041565,120]
[394284432,1763417601250,-151.0,0.00041565,120]
[394284433,1763417601293,-151.0,0.00041565,120]
[394284434,1763417601336,-151.0,0.00041565,120]
[394284435,1763417601385,-232.932112,0.00041565,30]
[394284436,1763417601429,-151.0,0.00041565,120]
[394284437,1763417601472,-151.0,0.00041565,120]
[394284438,1763417601514,-151.0,0.00041565,120]
[394284439,1763417601556,-151.0,0.00041565,120]
[394284440,1763417601600,-151.0,0.00041565,120]
[394284441,1763417601642,-192.930645,0.00041565,120]
[394284442,1763417601683,-151.0,0.00041565,120]
[394284443,1763417601724,-151.0,0.00041565,120]
[394284444,1763417601765,-151.0,0.00041565,120]
[394284445,1763417601804,-151.0,0.00041565,120]
[394284446,1763417601846,-172.007902,0.00041565,120]
[394284447,1763417601889,-172.007902,0.00041565,120]
[394284448,1763417601930,-172.007902,0.00041565,120]
[394284449,1763417601971,-172.007902,0.00041565,120]
[394284450,1763417602011,-172.007902,0.00041565,120]
[394284451,1763417602051,-172.007902,0.00041565,120]
[394284452,1763417602092,-172.007902,0.00041565,120]
[394284453,1763417602137,-172.007902,0.00041565,120]
[394284454,1763417602185,-172.007902,0.00041565,120]
[394284455,1763417602228,-172.007902,0.00041565,120]
[394284456,1763417602272,-172.007902,0.00041565,120]
[394284457,1763417602314,-172.007902,0.00041565,120]
[394284458,1763417602358,-172.007902,0.00041565,120]
[394284459,1763417602404,-172.007902,0.00041565,120]
[394284460,1763417602451,-172.007902,0.00041565,120]
[394284461,1763417602498,-172.007902,0.00041565,120]
[394284462,1763417602543,-172.007902,0.00041565,120]
[394284463,1763417602586,-172.007902,0.00041565,120]
[394284464,1763417602628,-172.007902,0.00041565,120]
[394284465,1763417602673,-172.007912,0.00041565,120]
[394284466,1763417602730,-152.62,0.000428,30]
[394284467,1763417602773,-819.24,0.000431,120]
[394284468,1763417602815,-300.0,0.00044057,119]
[394284469,1763417602859,-250.0,0.00044057,120]
[394284470,1763417602901,-218.87434665,0.00044057,120]
[394284471,1763417602942,-195.0,0.00044057,120]
[394284472,1763417602984,-160.59,0.000442,30]
[394284473,1763417603025,-788.0,0.00044263,30]
[394284474,1763417603067,-788.0,0.00044719,30]
[394284475,1763417603114,-247.3,0.00045,120]
[394284476,1763417603161,-788.0,0.00045176,30]
[394284477,1763417603224,-152.62,0.000452,30]
[394284478,1763417603271,-788.0,0.00045632,30]
[394284479,1763417603318,-323.83030038,0.00046,120]
[394284480,1763417603363,-367.67493073,0.00046,120]
[394284481,1763417603407,-788.0,0.00046088,30]
[394284482,1763417603449,-788.0,0.00046545,30]
[394284483,1763417603494,-182.57104163,0.00047,120]
[394284484,1763417603536,-299.39869359,0.00047,120]
[394284485,1763417603579,-196.78421097,0.00047,120]
[394284486,1763417603625,-205.49812475,0.00047,120]
[394284487,1763417603670,-788.0,0.00047001,30]
[394284488,1763417603716,-152.62,0.000472,30]
[394284489,1763417603761,-160.59,0.000476,30]
[394284490,1763417603806,-323.83030038,0.00048,120]
[394284491,1763417603850,-367.67493073,0.00048,120]
[394284492,1763417603899,-182.57104163,0.000484,120]
[394284493,1763417603945,-196.78421097,0.000484,120]
[394284494,1763417603990,-205.49812475,0.000484,120]
[394284495,1763417604035,-153.0,0.00048403,120]
[394284496,1763417604085,-153.0,0.00048404,120]
[394284497,1763417604140,-205.49812475,0.000499,120]
[394284498,1763417604187,-250.0,0.00049958,60]
[394284499,1763417604237,-1000.0,0.00049958,60]
[394284500,1763417604281,-250.0,0.00049958,60]
[394284501,1763417604326,-250.0,0.00049986,80]
[394284502,1763417604373,-1000.0,0.00049986,80]
[394284503,1763417604417,-250.0,0.00049986,80]
[394284504,1763417604462,-500.0,0.00049999,30]
[394284505,1763417604505,-250.0,0.00049999,30]
[394284506,1763417604549,-250.0,0.00049999,30]
[394284507,1763417604598,-500.0,0.00049999,30]
[394284508,1763417604647,-500.0,0.00049999,50]
[394284509,1763417604692,-250.0,0.00049999,50]
[394284510,1763417604737,-250.0,0.00049999,50]
[394284511,1763417604780,-500.0,0.00049999,50]
[394284512,1763417604826,-500.0,0.00049999,60]
[394284513,1763417604868,-250.0,0.00049999,60]
[394284514,1763417604911,-500.0,0.00049999,60]
[394284515,1763417604957,-250.0,0.00049999,70]
[394284516,1763417605003,-500.0,0.00049999,70]
[394284517,1763417605045,-250.0,0.00049999,120]
[394284518,1763417605089,-1000.0,0.00049999,30]
[394284519,1763417605132,-1000.0,0.00049999,50]
[394284520,1763417605176,-1000.0,0.00049999,60]
[394284521,1763417605222,-1000.0,0.00049999,70]
[394284522,1763417605264,-1000.0,0.00049999,120]
[394284523,1763417605306,-151.0,0.00049999,30]
[394284524,1763417605571,-160.3220957,0.00049999,50]
[394284525,1763417605613,-250.0,0.00049999,30]
[394284526,1763417605654,-250.0,0.00049999,50]
[394284527,1763417605696,-250.0,0.00049999,60]
[394284528,1763417605739,-250.0,0.00049999,70]
[394284529,1763417605780,-250.0,0.00049999,120]
[394284530,1763417605831,-247.3,0.0005,120]
[394284531,1763417605879,-1000.0,0.00050037,120]
[394284532,1763417605924,-500.0,0.00050099,30]
[394284533,1763417605966,-250.0,0.00050099,30]
[394284534,1763417606008,-500.0,0.00050099,30]
[394284535,1763417606050,-250.0,0.00050099,30]
[394284536,1763417606093,-1000.0,0.00050099,30]
[394284537,1763417606140,-151.0,0.00050099,30]
[394284538,1763417606183,-513.91436199,0.00050099,30]
[394284539,1763417606227,-250.0,0.00050099,30]
[394284540,1763417606273,-500.0,0.00050499,120]
[394284541,1763417606315,-250.0,0.00050499,120]
[394284542,1763417606363,-500.0,0.00050499,120]
[394284543,1763417606407,-250.0,0.00050499,120]
[394284544,1763417606451,-300.0,0.00050499,120]
[394284545,1763417606503,-1000.0,0.00050499,120]
[394284546,1763417606550,-151.0,0.00050499,120]
[394284547,1763417606596,-500.0,0.00050499,120]
[394284548,1763417606644,-250.0,0.00050499,120]
[394284549,1763417606695,-548704.93944435,0.000505,120]
[394284550,1763417606741,-2672.73912685,0.000505,120]
[394284551,1763417606792,-100000.0,0.000505,120]
[394284552,1763417606836,-1095.0,0.000505,30]
[394284553,1763417606881,-152.62,0.000506,30]
[394284554,1763417606925,-560.0,0.00050657,120]
[394284555,1763417606968,-151.0,0.000508,120]
[394284556,1763417607011,-1000.0,0.00050999,120]
[394284557,1763417607053,-2126.65374416,0.00050999,120]
[394284558,1763417607097,-240.0576055,0.00050999,120]
[394284559,1763417607146,-248.6762475,0.00050999,120]
[394284560,1763417607192,-50000.0,0.00051,51]
[394284561,1763417607236,-7980.0,0.00051,120]
[394284562,1763417607280,-10000.0,0.00051,120]
[394284563,1763417607322,-518.04341752,0.00051,120]
[394284564,1763417607366,-73044.0,0.00051,120]
[394284565,1763417607412,-1000000.0,0.00051,120]
[394284566,1763417607456,-1000000.0,0.00051,120]
[394284567,1763417607503,-1000000.0,0.00051,120]
[394284568,1763417607549,-1000000.0,0.00051,120]
[394284569,1763417607592,-495.8357177,0.00051,60]
[394284570,1763417607636,-2930.0,0.00051,120]
[394284571,1763417607678,-647.66060075,0.00051,120]
[394284572,1763417607720,-735.34986147,0.00051,120]
[394284573,1763417607760,-861.5485937,0.000511,30]
[394284574,1763417607803,-153.0,0.000511,120]
[394284575,1763417607850,-205.49812475,0.000514,120]
[394284576,1763417607897,-100719.25496976,0.000515,120]
[394284577,1763417642417,-500.0,0.00040964,31]
[394284578,1763417642463,-500.0,0.00040964,31]
[394284579,1763417642511,-500.0,0.00040964,31]
[394284580,1763417642557,-500.0,0.00040964,31]
[394284581,1763417642817,-500.0,0.00040964,31]
[394284582,1763417642873,-500.0,0.00040964,31]
[394284583,1763417642928,-500.0,0.00040964,31]
[394284584,1763417642976,-409.70964979,0.00040964,31]
[394284585,1763417643033,-160.59,0.000415,30]
[394284586,1763417643103,-205.49812475,0.00047,120]
[394284587,1763417643153,-2116.63723896,0.00048,120]
[394284588,1763417643205,-153.0,0.00048388,120]
[394284589,1763417643255,-434.41218331,0.00049999,120]
[394284590,1763417643302,-899280.74503024,0.000515,120]
[394284591,1763417643345,-151.0,0.000515,120]
[394284592,1763417643388,-150.0,0.0005182,120]
[394284593,1763417643430,-150.0,0.00051841,120]
[394284594,1763417643473,-357.75,0.000519,30]
[394284595,1763417643514,-1818.0,0.00051917,120]
[394284596,1763417643563,-2000.000001,0.00051937,120]
[394284597,1763417643611,-2994.0,0.0005194,110]
[394284598,1763417643655,-260.83319183,0.00051949,120]
[394284599,1763417643699,-1479.78369288,0.0005195,120]
[394284600,1763417643744,-1164.33060764,0.00051951,120]
[394284601,1763417643789,-285.54187066,0.00051951,120]
[394284602,1763417643832,-1622.60013456,0.00051952,120]
[394284603,1763417643876,-3240.41846038,0.00051953,120]
[394284604,1763417643922,-1164.33060764,0.00051956,120]
[394284605,1763417643967,-287.61708375,0.00051963,120]
[394284606,1763417644010,-577.61855162,0.00051964,120]
[394284607,1763417644054,-3240.41846038,0.00051965,120]
[394284608,1763417644097,-577.61855162,0.00051965,120]
[394284609,1763417644140,-285.54187066,0.00051968,120]
[394284610,1763417644187,-163.25158688,0.00051969,120]
[394284611,1763417644234,-287.61708375,0.00051976,120]
[394284612,1763417644278,-263.07635485,0.00051978,120]
[394284613,1763417644323,-573.27512861,0.00051983,120]
[394284614,1763417644366,-11837.57033192,0.00051983,120]
[394284615,1763417644409,-260.83319183,0.00051986,120]
[394284616,1763417644452,-194.20210665,0.00051987,120]
[394284617,1763417644494,-1709.16365793,0.00051987,120]
[394284618,1763417644537,-163.25158688,0.00051989,120]
[394284619,1763417644584,-591.06,0.0005199,120]
[394284620,1763417644629,-1622.60013456,0.0005199,120]
[394284621,1763417644673,-194.20210665,0.0005199,120]
[394284622,1763417644716,-263.07635485,0.00051994,120]
[394284623,1763417644760,-11837.57033192,0.00051995,120]
[394284624,1763417644803,-1709.16365793,0.00051998,120]
[394284625,1763417644848,-1479.78369288,0.00051999,120]
[394284626,1763417644903,-1000.0,0.00051999,120]
[394284627,1763417644950,-50000.0,0.00052,52]
[394284628,1763417644993,-573.27512861,0.00052,120]
[394284629,1763417645040,-1000000.0,0.00052,120]
[394284630,1763417645085,-1000000.0,0.00052,120]
[394284631,1763417645130,-400.0,0.00052,120]
[394284632,1763417645175,-901.25464068,0.00052,30]
[394284633,1763417645219,-3350.0,0.00052,120]
[394284634,1763417645265,-1000000.0,0.00052,120]
[394284635,1763417645313,-982557.77761095,0.00052,120]
[394284636,1763417649522,-153.0,0.00048387,120]
[394284637,1763417649571,-17442.22238905,0.00052,120]
[394284638,1763417649616,-1000000.0,0.00052,120]
[394284639,1763417649661,-1000000.0,0.00052,120]
[394284640,1763417649705,-1000000.0,0.00052,120]
[394284641,1763417649748,-900000.0,0.00052,120]
[394284642,1763417649795,-770000.0,0.00052,120]
[394284643,1763417649840,-312404.77761095,0.00052,120]
[394284644,1763417677337,-321.97,0.000494,30]
[394284645,1763417677383,-300.0,0.00051499,120]
[394284646,1763417677426,-401.3534776,0.00051499,120]
[394284647,1763417677473,-887595.22238905,0.00052,120]
[394284648,1763417677515,-153.0,0.00052,120]
[394284649,1763417677558,-500.0,0.00052,30]
[394284650,1763417677815,-200317.88913952,0.00052,120]
[394284651,1763417677858,-1120.0,0.00052,30]
[394284652,1763417677900,-150.0,0.00052047,120]
[394284653,1763417677944,-10000.0,0.00052055,120]
[394284654,1763417677985,-651.09662161,0.00052055,120]
[394284655,1763417678027,-1553.78,0.00052055,120]
[394284656,1763417678069,-151.0,0.000521,120]
[394284657,1763417678122,-3280.0,0.000522,120]
[394284658,1763417678171,-160.59,0.000523,30]
[394284659,1763417678217,-500.0,0.00052328,120]
[394284660,1763417678264,-500.0,0.00052602,120]
[394284661,1763417678314,-2000.0,0.0005263,69]
[394284662,1763417678362,-4000.0,0.0005264,120]
[394284663,1763417678407,-151.0,0.000527,120]
[394284664,1763417678451,-321.97,0.000527,30]
[394284665,1763417678495,-500.0,0.00052876,120]
[394284666,1763417678543,-153.0,0.000529,120]
[394284667,1763417678595,-1000.0,0.00052999,120]
[394284668,1763417678642,-441.26124595,0.00053,120]
[394284669,1763417678694,-200.0,0.00053,120]
[394284670,1763417678754,-2930.0,0.00053,120]
[394284671,1763417678814,-1000000.0,0.00053,120]
[394284672,1763417678862,-1617.0,0.00053,120]
[394284673,1763417678913,-2309.96,0.00053005,120]
[394284674,1763417678960,-500.0,0.0005315,120]
[394284675,1763417679008,-151.0,0.000533,120]
[394284676,1763417679057,-152.62,0.000533,30]
[394284677,1763417679103,-2294.75996412,0.000534,120]
[394284678,1763417679154,-500.0,0.00053424,120]
[394284679,1763417679206,-1502.86241258,0.0005348,30]
[394284680,1763417679269,-560.0,0.00053657,120]
[394284681,1763417679321,-500.0,0.00053698,120]
[394284682,1763417679369,-390.0,0.000538,120]
[394284683,1763417679416,-162.0,0.000538,120]
[394284684,1763417679460,-153.0,0.000538,120]
[394284685,1763417679507,-250.0,0.000539,30]
[394284686,1763417679549,-2265859.08587464,0.0005392,120]
[394284687,1763417679590,-603744.57887493,0.0005392,120]
[394284688,1763417714849,-250.0,0.00053919,120]
[394284689,1763417714894,-250.0,0.00053919,120]
[394284690,1763417714940,-407.14050674,0.00053919,120]
[394284691,1763417714984,-250.0,0.00053919,120]
[394284692,1763417715029,-250.0,0.00053919,120]
[394284693,1763417715071,-250.0,0.00053919,120]
[394284694,1763417715113,-250.0,0.00053919,120]
[394284695,1763417715156,-250.0,0.00053919,120]
[394284696,1763417715201,-250.0,0.00053919,120]
[394284697,1763417715243,-250.0,0.00053919,120]
[394284698,1763417715283,-250.0,0.00053919,120]
[394284699,1763417715322,-250.0,0.00053919,120]
[394284700,1763417715362,-250.0,0.00053919,120]
[394284701,1763417715402,-250.0,0.00053919,120]
[394284702,1763417715441,-458.32450025,0.00053919,120]
[394284703,1763417715481,-243.31418846,0.00053919,120]
[394284704,1763417715521,-250.0,0.00053919,120]
[394284705,1763417715561,-775258.28417028,0.0005392,120]
[394284706,1763417715601,-500.0,0.00053972,120]
[394284707,1763417715642,-1000.0,0.00053999,120]
[394284708,1763417715683,-2027.09463523,0.00054,120]
[394284709,1763417715729,-1000000.0,0.00054,120]
[394284710,1763417715772,-1000000.0,0.00054,120]
[394284711,1763417715834,-1011865.0,0.00054,120]
[394284712,1763417715879,-150.0,0.00054,120]
[394284713,1763417715925,-1000.0,0.00054,120]
[394284714,1763417715969,-200.0,0.00054,120]
[394284715,1763417716013,-151.0,0.00054,120]
[394284716,1763417716056,-396.0800594,0.00054,120]
[394284717,1763417716101,-121687.78515435,0.00054,30]
[394284718,1763417716144,-113301.97177289,0.00054,30]
[394284719,1763417716190,-239759.01423084,0.00054,30]
[394284720,1763417716234,-809.57575094,0.00054,120]
[394284721,1763417716560,-919.18732683,0.00054,120]
[394284722,1763417716604,-500.0,0.00054246,120]
[394284723,1763417716646,-10000.0,0.00054247,120]
[394284724,1763417716688,-1317.18949281,0.000543,120]
[394284725,1763417716732,-34542.91638897,0.00054454,60]
[394284726,1763417716775,-500.0,0.0005452,120]
[394284727,1763417716816,-151.0,0.000546,120]
[394284728,1763417716856,-1484.98666213,0.00054678,86]
[394284729,1763417716896,-153.0,0.000547,120]
[394284730,1763417716937,-1000.0,0.00054793,120]
[394284731,1763417716979,-2000.0,0.00054794,30]
[394284732,1763417717018,-232.8370681,0.00054794,120]
[394284733,1763417717058,-1000.0,0.00054794,120]
[394284734,1763417717098,-1000.0,0.00054794,120]
[394284735,1763417717139,-1000.0,0.00054794,120]
[394284736,1763417717183,-1000.0,0.00054794,120]
[394284737,1763417717232,-1000.0,0.00054794,120]
[394284738,1763417717284,-1000.0,0.00054794,120]
[394284739,1763417717330,-522.43556064,0.00054794,120]
[394284740,1763417717373,-505.18,0.00054795,30]
[394284741,1763417717416,-10000.0,0.00054795,120]
[394284742,1763417717459,-10000.0,0.00054795,120]
[394284743,1763417717505,-4996.17050844,0.00054795,30]
[394284744,1763417717558,250.0,0.00053919,120]
[394284745,1763417717611,250.0,0.00053919,120]
[394284746,1763417717672,250.0,0.00053919,120]
[394284747,1763417717724,310.93344637,0.00053919,120]
[394284748,1763417717786,152.62,0.000415,30]
[394284749,1763417718070,152.62,0.000499,30]
[394284750,1763417719085,214.87271188,0.00053919,120]
[394284751,1763417721828,50000.0,0.00051999,52]
[394284752,1763417723787,5518.0,0.000507,120]
[394284753,1763417739928,-3745.0,0.000497,120]
[394284754,1763417739976,-1000.0,0.00053919,120]
[394284755,1763417740019,-1000.0,0.00053919,120]
[394284756,1763417740069,-1000.0,0.00053919,120]
[394284757,1763417740113,-1000.0,0.00053919,120]
[394284758,1763417740157,-1000.0,0.00053919,120]
[394284759,1763417740204,-1000.0,0.00053919,120]
[394284760,1763417740251,-1000.0,0.00053919,120]
[394284761,1763417740291,-1000.0,0.00053919,120]
[394284762,1763417740331,-1000.0,0.00053919,120]
[394284763,1763417740371,-1000.0,0.00053919,120]
[394284764,1763417740410,-1000.0,0.00053919,120]
[394284765,1763417740460,-1000.0,0.00053919,120]
[394284766,1763417740502,-1000.0,0.00053919,120]
[394284767,1763417740543,-1000.0,0.00053919,120]
[394284768,1763417740582,-1000.0,0.00053919,120]
[394284769,1763417740620,-1000.0,0.00053919,120]
[394284770,1763417740658,-1000.0,0.00053919,120]
[394284771,1763417740697,-1000.0,0.00053919,120]
[394284772,1763417740736,-1000.0,0.00053919,120]
[394284773,1763417740776,-1000.0,0.00053919,120]
[394284774,1763417740822,-544.0,0.00054795,120]
[394284775,1763417740860,-544.0,0.00054795,120]
[394284776,1763417740898,-544.0,0.00054795,120]
[394284777,1763417740935,-544.0,0.00054795,120]
[394284778,1763417740972,-544.0,0.00054795,120]
[394284779,1763417741009,-544.0,0.00054795,120]
[394284780,1763417741046,-544.0,0.00054795,120]
[394284781,1763417741086,-544.0,0.00054795,120]
[394284782,1763417741126,-544.0,0.00054795,120]
[394284783,1763417741166,-544.0,0.00054795,120]
[394284784,1763417741214,-544.0,0.00054795,120]
[394284785,1763417741259,-544.0,0.00054795,120]
[394284786,1763417741300,-544.0,0.00054795,120]
[394284787,1763417741337,-544.0,0.00054795,120]
[394284788,1763417741375,-544.0,0.00054795,120]
[394284789,1763417741410,-544.0,0.00054795,120]
[394284790,1763417741445,-544.0,0.00054795,120]
[394284791,1763417741481,-544.0,0.00054795,120]
[394284792,1763417741518,-544.0,0.00054795,120]
[394284793,1763417741556,-544.0,0.00054795,120]
[394284794,1763417741593,-544.0,0.00054795,120]
[394284795,1763417741630,-544.0,0.00054795,120]
[394284796,1763417741869,-544.0,0.00054795,120]
[394284797,1763417741919,-555.69804802,0.00054795,120]
[394284798,1763417741968,-1202.13156918,0.000548,120]
[394284799,1763417742010,-222.84087561,0.000549,120]
[394284800,1763417742053,-4400.65306442,0.000549,120]
[394284801,1763417742094,-321.97,0.000549,30]
[394284802,1763417742136,-50000.0,0.00055,114]
[394284803,1763417742180,-214.67803348,0.00055,120]
[394284804,1763417742222,-500.0,0.00055,30]
[394284805,1763417742264,-1000.0,0.00055,120]
[394284806,1763417742309,-1000000.0,0.00055,120]
[394284807,1763417742351,-1000.0,0.00055,30]
[394284808,1763417742392,-10000.0,0.00055,120]
[394284809,1763417742434,-2241.96121895,0.00055,120]
[394284810,1763417742480,-186.0,0.00055,60]
[394284811,1763417742523,-380.0,0.00055,120]
[394284812,1763417742563,-7072.3428295,0.00055,120]
[394284813,1763417742604,-1000.0,0.00055,60]
[394284814,1763417742643,-7108.35143481,0.00055,120]
[394284815,1763417742686,-150.0,0.00055,120]
[394284816,1763417742728,-1000.0,0.00055,60]
[394284817,1763417742771,-883.53388055,0.00055,120]
[394284818,1763417742811,-168.89259152,0.00055,120]
[394284819,1763417742853,-2930.0,0.00055,120]
[394284820,1763417742893,-498.14,0.00055,120]
[394284821,1763417742934,-150.0,0.00055,120]
[394284822,1763417742974,-500.0,0.00055,60]
[394284823,1763417743016,-150.0,0.00055,60]
[394284824,1763417743063,-535297.32,0.00055,120]
[394284825,1763417743105,-500.0,0.00055,120]
[394284826,1763417743148,-384.55055121,0.00055,120]
[394284827,1763417743191,-560.0,0.00055,30]
[394284828,1763417743234,-1000.0,0.0005504,120]
[394284829,1763417743275,-295.58,0.00055068,30]
[394284830,1763417743314,-151.0,0.000552,120]
[394284831,1763417743354,-153.0,0.000556,120]
[394284832,1763417743394,-2500.0,0.0005568,69]
[394284833,1763417743440,-151.0,0.000558,120]
[394284834,1763417743481,-500.0,0.0005588,120]
[394284835,1763417743517,-1528.97069329,0.000559,120]
[394284836,1763417743556,-5000.0,0.00055975,120]
[394284837,1763417743596,-1000.0,0.00055999,120]
[394284838,1763417743633,-150.0,0.00056,120]
[394284839,1763417743669,-1000.0,0.00056,120]
[394284840,1763417743707,-200.0,0.00056,120]
[394284841,1763417743743,-150.0,0.00056,120]
[394284842,1763417743780,-916.1981511,0.00056,120]
[394284843,1763417743817,-809.57575094,0.00056,120]
[394284844,1763417743857,-919.18732684,0.00056,120]
[394284845,1763417743894,-370.2549822,0.00056395,120]
[394284846,1763417743934,-151.0,0.000565,120]
[394284847,1763417743971,-153.0,0.000565,120]
[394284848,1763417744009,-562.0,0.000566,120]
[394284849,1763417744046,-551.48768143,0.000568,120]
[394284850,1763417744084,-2000.0,0.0005685,69]
[394284851,1763417744121,-1000.0,0.00056999,120]
[394284852,1763417744160,-1000.0,0.00057,120]
[394284853,1763417744201,-150.0,0.00057,120]
[394284854,1763417744241,-2930.0,0.00057,120]
[394284855,1763417744281,-150.0,0.00057,120]
[394284856,1763417744323,-151.0,0.000571,120]
[394284857,1763417744364,-321.97,0.000571,30]
[394284858,1763417744405,-153.0,0.000574,120]
[394284859,1763417744447,-5000.0,0.00057523,120]
[394284860,1763417744494,-4012.0,0.00057534,120]
[394284861,1763417744535,-10000.0,0.00057534,120]
[394284862,1763417744574,-10000.0,0.00057534,120]
[394284863,1763417744613,-10000.0,0.00057534,120]
[394284864,1763417744654,-10000.0,0.00057534,120]
[394284865,1763417744698,-151.0,0.000577,120]
[394284866,1763417744739,-500000.0,0.0005775,120]
[394284867,1763417744778,-150.0,0.00058,120]
[394284868,1763417744818,-1000.0,0.00058,120]
[394284869,1763417744862,-500000.0,0.00058,120]
[394284870,1763417744904,-350.0,0.00058,120]
[394284871,1763417744946,-200.0,0.00058,120]
[394284872,1763417744987,-288.56,0.00058,120]
[394284873,1763417745033,-150.0,0.00058,120]
[394284874,1763417745076,-1000000.0,0.00058,120]
[394284875,1763417745117,-2288.44061459,0.00058,120]
[394284876,1763417745159,-560.0,0.00058,30]
[394284877,1763417745207,-1065.226,0.00058223,114]
[394284878,1763417745255,-500000.0,0.0005825,120]
[394284879,1763417745296,-151.0,0.000583,120]
[394284880,1763417745339,-153.0,0.000583,120]
[394284881,1763417745382,-500000.0,0.000585,120]
[394284882,1763417745428,-251576.48470236,0.000585,120]
[394284883,1763417759848,-560.0,0.00052954,120]
[394284884,1763417759899,-748423.51529764,0.000585,120]
[394284885,1763417759944,-2000.0,0.0005864,68]
[394284886,1763417759993,-5000.0,0.00058693,120]
[394284887,1763417760055,-500000.0,0.0005875,120]
[394284888,1763417760109,-180.0,0.000588,120]
[394284889,1763417760158,-151.0,0.000589,120]
[394284890,1763417760216,-1000000.0,0.000589,120]
[394284891,1763417760264,-1000.0,0.00058999,120]
[394284892,1763417760312,-848.65112,0.00059,120]
[394284893,1763417760358,-1000.0,0.00059,120]
[394284894,1763417760413,-500000.0,0.00059,120]
[394284895,1763417760466,-150.0,0.00059,120]
[394284896,1763417760516,-2930.0,0.00059,120]
[394284897,1763417760568,-369853.548,0.00059,120]
[394284898,1763417760616,-153.0,0.000592,120]
[394284899,1763417760667,-152.62,0.000592,60]
[394284900,1763417760716,-500000.0,0.0005925,120]
[394284901,1763417760760,-150.0,0.0005939,120]
[394284902,1763417760800,-5000.0,0.000594,120]
[394284903,1763417760848,-500000.0,0.000595,120]
[394284904,1763417760890,-151.0,0.000596,120]
[394284905,1763417760934,-500000.0,0.0005975,120]
[394284906,1763417760976,-2000.0,0.0005978,65]
[394284907,1763417761016,-177059.5698175,0.0005987,120]
[394284908,1763417761056,-1237.42766166,0.000599,120]
[394284909,1763417761097,-150.0,0.00059974,120]
[394284910,1763417761138,-150.0,0.00059974,120]
[394284911,1763417761183,-200.0,0.00059974,120]
[394284912,1763417761226,-1000.0,0.00059999,120]
[394284913,1763417761273,-50000.0,0.0006,117]
[394284914,1763417761316,-200.0,0.0006,120]
[394284915,1763417761359,-172.69450237,0.0006,120]
[394284916,1763417761402,-1167.45619496,0.0006,30]
[394284917,1763417761442,-486.83366899,0.0006,120]
[394284918,1763417761483,-150.0,0.0006,120]